fUSD/lending_fUSD_20251024
["ID","MTS","AMOUNT","RATE_DAILY","PERIOD"]
[392270200,1761295840898,-3355.97683585,0.00036765,2]
[392270201,1761295840907,-352.0,0.00036768,2]
[392270202,1761295840916,-500.0,0.00036773,2]
[392270203,1761295840926,-717.56,0.000368,30]
[392270204,1761295840936,-800.0,0.000368,13]
[392270205,1761295840946,-1086.17,0.000368,14]
[392270206,1761295840955,-200.0,0.00036883,2]
[392270207,1761295840965,-200.0,0.00036883,2]
[392270208,1761295840974,-406.44498216,0.00036883,2]
[392270209,1761295840984,-250.0,0.00036883,2]
[392270210,1761295840993,-500.0,0.00036883,2]
[392270211,1761295841003,-500.0,0.00036883,2]
[392270212,1761295841012,-250.0,0.00036883,2]
[392270213,1761295841023,-250.0,0.00036883,2]
[392270214,1761295841032,-322.6107,0.00036883,2]
[392270215,1761295841042,-500.0,0.00036883,2]
[392270216,1761295841052,-250.0,0.00036883,2]
[392270217,1761295841061,-250.0,0.00036883,2]
[392270218,1761295841072,-500.0,0.00036883,2]
[392270220,1761295841081,-250.0,0.00036883,2]
[392270221,1761295841090,-250.0,0.00036883,2]
[392270222,1761295841099,-500.0,0.00036883,2]
[392270223,1761295841111,-250.0,0.00036883,2]
[392270224,1761295841121,-250.0,0.00036883,2]
[392270225,1761295841132,-200.0,0.00036883,2]
[392270226,1761295841142,-500.0,0.00036883,2]
[392270227,1761295841152,-250.0,0.00036883,2]
[392270228,1761295841162,-250.0,0.00036883,2]
[392270229,1761295841171,-500.0,0.00036883,2]
[392270230,1761295841182,-250.0,0.00036883,2]
[392270231,1761295841192,-500.0,0.00036883,2]
[392270232,1761295841203,-250.0,0.00036883,2]
[392270233,1761295841212,-250.0,0.00036883,2]
[392270234,1761295841222,-500.0,0.00036883,2]
[392270235,1761295841232,-250.0,0.00036883,2]
[392270236,1761295841241,-250.0,0.00036883,2]
[392270237,1761295841251,-500.0,0.00036883,2]
[392270238,1761295841261,-250.0,0.00036883,2]
[392270239,1761295841275,-387.38266498,0.00036883,2]
[392270240,1761295841284,-500.0,0.00036883,2]
[392270241,1761295841295,-259.5754077,0.00036883,2]
[392270242,1761295841305,-574.12855637,0.00036883,2]
[392270243,1761295841316,-211.60412043,0.00036883,2]
[392270244,1761295841326,-153.5903605,0.00036883,2]
[392270245,1761295841335,-452.38747311,0.00036883,2]
[392270246,1761295841346,-277.35679052,0.00036883,2]
[392270247,1761295841355,-1300.0,0.000369,13]
[392270248,1761295841365,-352.0,0.0003692,7]
[392270249,1761295841375,-2872.96172,0.00037,2]
[392270250,1761295841385,-1563.57,0.00037017,2]
[392270251,1761295841395,-666.0,0.00037017,3]
[392270252,1761295841404,-769.65,0.00037017,2]
[392270253,1761295841420,-1000.0,0.00037041,2]
[392270254,1761295841429,-360.3,0.00037064,14]
[392270255,1761295841439,-19999.99,0.00037067,2]
[392270256,1761295841450,-7728.33,0.00037067,2]
[392270257,1761295841459,-16969.77,0.00037067,30]
[392270258,1761295841468,-151.0,0.00037072,30]
[392270259,1761295841478,-151.0,0.00037072,30]
[392270260,1761295841489,-151.0,0.00037072,30]
[392270261,1761295841500,-151.0,0.00037072,30]
[392270262,1761295841509,-152.965417,0.00037072,30]
[392270263,1761295841519,-151.0,0.00037072,30]
[392270264,1761295841528,-151.0,0.00037072,30]
[392270265,1761295841537,-151.0,0.00037111,30]
[392270266,1761295841547,-151.0,0.00037111,30]
[392270267,1761295841556,-151.0,0.00037111,30]
[392270268,1761295841565,-151.0,0.00037111,30]
[392270269,1761295841575,-151.0,0.00037111,30]
[392270270,1761295841585,-151.0,0.00037111,30]
[392270271,1761295841596,-155.251317,0.00037111,30]
[392270272,1761295841606,-258.638032,0.00037111,30]
[392270273,1761295841615,-151.0,0.00037111,30]
[392270274,1761295841626,-151.0,0.00037111,30]
[392270275,1761295841635,-151.0,0.00037111,30]
[392270276,1761295841645,-151.0,0.00037111,30]
[392270277,1761295841655,-151.0,0.00037111,30]
[392270278,1761295841664,-298.640691,0.00037111,30]
[392270280,1761295841673,-151.0,0.00037111,30]
[392270281,1761295841683,-151.0,0.00037111,30]
[392270283,1761295841692,-151.0,0.00037111,30]
[392270285,1761295841701,-151.0,0.00037111,30]
[392270286,1761295841711,-151.0,0.00037111,30]
[392270287,1761295841721,-151.0,0.00037111,30]
[392270288,1761295841730,-151.0,0.00037111,30]
[392270289,1761295841741,-162.582534,0.00037111,30]
[392270291,1761295841751,-190.202171,0.00037121,30]
[392270293,1761295841760,-190.202171,0.00037121,30]
[392270294,1761295841770,-151.0,0.00037121,30]
[392270295,1761295841779,-190.202171,0.00037121,30]
[392270296,1761295841788,-190.202171,0.00037121,30]
[392270297,1761295841800,-151.0,0.00037121,30]
[392270298,1761295841811,-151.0,0.00037121,30]
[392270299,1761295841820,-151.0,0.00037121,30]
[392270300,1761295841832,-151.0,0.00037121,30]
[392270301,1761295841842,-151.0,0.00037121,15]
[392270302,1761295841854,-283.435513,0.00037121,15]
[392270303,1761295841865,-151.0,0.00037121,30]
[392270304,1761295841874,-151.0,0.00037121,30]
[392270305,1761295841888,-151.0,0.00037121,30]
[392270306,1761295841898,-151.0,0.00037121,30]
[392270308,1761295841909,-151.0,0.00037121,30]
[392270309,1761295841919,-151.0,0.00037121,30]
[392270310,1761295841931,-151.0,0.00037121,30]
[392270311,1761295841943,-154.30712,0.00037121,30]
[392270312,1761295841954,-515.315031,0.00037121,30]
[392270313,1761295841964,-151.0,0.00037121,30]
[392270314,1761295841974,-173.888232,0.00037121,30]
[392270315,1761295841985,-173.888232,0.00037121,30]
[392270316,1761295841995,-515.315031,0.00037121,30]
[392270317,1761295842006,-173.888232,0.00037121,30]
[392270318,1761295842017,-151.0,0.00037121,30]
[392270319,1761295842028,-322.446415,0.00037121,30]
[392270320,1761295842038,-515.315031,0.00037121,30]
[392270322,1761295842047,-151.0,0.00037121,30]
[392270323,1761295842056,-173.888232,0.00037121,30]
[392270324,1761295842067,-322.446415,0.00037121,30]
[392270325,1761295842077,-515.315031,0.00037121,30]
[392270326,1761295842087,-322.446415,0.00037121,30]
[392270327,1761295842097,-151.0,0.00037121,30]
[392270328,1761295842108,-322.446415,0.00037121,30]
[392270329,1761295842118,-151.0,0.00037121,30]
[392270330,1761295842128,-151.0,0.00037121,30]
[392270331,1761295842139,-151.0,0.00037121,30]
[392270332,1761295842148,-151.0,0.00037121,30]
[392270333,1761295842157,-151.0,0.00037121,30]
[392270334,1761295842166,-151.0,0.00037121,30]
[392270335,1761295842175,-181.778693,0.00037121,30]
[392270336,1761295842184,-151.0,0.00037121,30]
[392270337,1761295842194,-151.0,0.00037121,30]
[392270338,1761295842204,-151.0,0.00037121,30]
[392270339,1761295842215,-151.0,0.00037121,30]
[392270340,1761295842224,-253.076872,0.00037121,30]
[392270341,1761295842234,-151.0,0.00037121,30]
[392270342,1761295842243,-210.653974,0.00037121,30]
[392270343,1761295842253,-151.0,0.00037121,30]
[392270344,1761295842261,-210.653974,0.00037121,30]
[392270345,1761295842271,-210.653974,0.00037121,30]
[392270346,1761295842280,-210.653974,0.00037121,30]
[392270347,1761295842291,-151.0,0.00037121,30]
[392270348,1761295842310,-150.0,0.00037131,7]
[392270349,1761295842328,-168.0,0.00037142,2]
[392270350,1761295842343,-352.0,0.00037171,120]
[392270351,1761295842356,-13582.11853429,0.00037207,2]
[392270352,1761295842369,-13739.57385664,0.00037209,2]
[392270353,1761295842383,-150.07,0.00037221,2]
[392270354,1761295842396,-212.01,0.00037269,2]
[392270355,1761295842413,-5888.0,0.0003731,2]
[392270356,1761295842432,-1282.91,0.00037313,2]
[392270357,1761295842448,-1000.0,0.00037315,2]
[392270358,1761295842462,-1003.60991166,0.00037321,2]
[392270359,1761295842473,-360.3,0.00037338,14]
[392270360,1761295842486,-159.0,0.00037397,30]
[392270361,1761295842500,-173.0,0.00037397,30]
[392270362,1761295842513,-200.0,0.00037431,2]
[392270363,1761295842527,-200.0,0.00037431,2]
[392270364,1761295842541,-595.37131296,0.00037431,2]
[392270365,1761295842555,-300.0,0.000375,2]
[392270366,1761295842569,-344.75363738,0.000375,2]
[392270367,1761295842584,-171.41325887,0.00037572,15]
[392270368,1761295842597,-150.07,0.0003758,2]
[392270369,1761295842612,-1000.0,0.00037588,2]
[392270370,1761295842627,-360.3,0.00037612,14]
[392270371,1761295842639,-1060.13521159,0.00037675,6]
[392270372,1761295842652,-461.61384217,0.00037678,6]
[392270373,1761295842670,-13582.11853429,0.00037749,2]
[392270374,1761295842685,-13739.57385664,0.00037751,2]
[392270375,1761295842698,-195.503348,0.00037766,30]
[392270376,1761295842712,-151.0,0.00037766,30]
[392270377,1761295842723,-151.0,0.00037766,30]
[392270378,1761295842735,-151.0,0.00037766,30]
[392270379,1761295842751,-151.0,0.00037766,30]
[392270380,1761295842764,-151.0,0.00037766,30]
[392270381,1761295842775,-151.0,0.00037766,30]
[392270382,1761295842785,-151.0,0.00037766,30]
[392270383,1761295842797,-151.0,0.00037766,30]
[392270384,1761295842811,-151.0,0.00037766,30]
[392270385,1761295842824,-151.0,0.00037766,30]
[392270386,1761295842835,-151.0,0.00037766,30]
[392270387,1761295842848,-151.0,0.00037766,30]
[392270388,1761295842859,-151.0,0.00037766,30]
[392270389,1761295842872,-151.0,0.00037766,30]
[392270390,1761295842884,-253.868081,0.00037766,30]
[392270391,1761295842897,-213.636811,0.00037766,30]
[392270392,1761295842911,-151.0,0.00037766,30]
[392270393,1761295842925,-156.450772,0.00037766,30]
[392270394,1761295842948,-151.0,0.00037766,30]
[392270395,1761295842963,-151.0,0.00037766,30]
[392270396,1761295842977,-151.0,0.00037766,30]
[392270397,1761295842989,-151.0,0.00037766,30]
[392270398,1761295843002,-151.0,0.00037766,30]
[392270399,1761295843015,-151.0,0.00037766,30]
[392270400,1761295843027,-210.653974,0.00037766,30]
[392270401,1761295843040,-154.006066,0.00037766,30]
[392270402,1761295843053,-210.653974,0.00037766,30]
[392270403,1761295843066,-210.653974,0.00037766,30]
[392270404,1761295843078,-210.653974,0.00037766,30]
[392270405,1761295843091,-151.0,0.00037766,30]
[392270406,1761295843103,-183.9877167,0.00037776,7]
[392270407,1761295843115,-894.85395261,0.00037776,7]
[392270408,1761295843128,-315.27853486,0.00037776,7]
[392270409,1761295843140,-374.84291397,0.00037776,7]
[392270410,1761295843153,-22378.7321468,0.00037776,7]
[392270411,1761295843164,-151.0,0.00037776,30]
[392270412,1761295843176,-190.202171,0.00037776,30]
[392270413,1761295843189,-190.202171,0.00037776,30]
[392270414,1761295843202,-190.202171,0.00037776,30]
[392270415,1761295843214,-208.752805,0.00037776,30]
[392270416,1761295843226,-190.202171,0.00037776,30]
[392270417,1761295843239,-151.0,0.00037776,30]
[392270418,1761295843251,-151.0,0.00037776,30]
[392270419,1761295843263,-151.0,0.00037776,15]
[392270420,1761295843275,-155.508179,0.00037776,30]
[392270421,1761295843287,-151.0,0.00037776,30]
[392270422,1761295843298,-151.0,0.00037776,30]
[392270423,1761295843310,-151.0,0.00037776,30]
[392270424,1761295843322,-151.0,0.00037776,30]
[392270425,1761295843334,-151.0,0.00037776,30]
[392270426,1761295843346,-515.315031,0.00037776,30]
[392270429,1761295843359,-151.0,0.00037776,30]
[392270431,1761295843370,-173.888232,0.00037776,30]
[392270433,1761295843382,-173.888232,0.00037776,30]
[392270435,1761295843394,-515.315031,0.00037776,30]
[392270438,1761295843407,-173.888232,0.00037776,30]
[392270440,1761295843423,-322.446415,0.00037776,30]
[392270442,1761295843434,-151.0,0.00037776,30]
[392270444,1761295843446,-515.315031,0.00037776,30]
[392270447,1761295843460,-173.888232,0.00037776,30]
[392270449,1761295843472,-322.446415,0.00037776,30]
[392270452,1761295843485,-515.315031,0.00037776,30]
[392270456,1761295843497,-322.446415,0.00037776,30]
[392270459,1761295843509,-322.446415,0.00037776,30]
[392270462,1761295843522,-156.210247,0.00037776,30]
[392270464,1761295843533,-151.0,0.00037776,30]
[392270467,1761295843544,-151.0,0.00037776,30]
[392270469,1761295843556,-151.0,0.00037776,30]
[392270471,1761295843567,-151.0,0.00037776,30]
[392270474,1761295843579,-151.0,0.00037776,30]
[392270476,1761295843591,-151.0,0.00037776,30]
[392270478,1761295843602,-151.0,0.00037776,30]
[392270480,1761295843613,-151.0,0.00037776,30]
[392270483,1761295843625,-151.0,0.00037776,30]
[392270485,1761295843637,-151.0,0.00037776,30]
[392270487,1761295843648,-151.0,0.00037776,30]
[392270489,1761295843659,-151.0,0.00037776,30]
[392270492,1761295843671,-151.0,0.00037776,30]
[392270494,1761295843682,-151.0,0.00037776,30]
[392270496,1761295843694,-151.0,0.00037776,30]
[392270498,1761295843705,-151.0,0.00037776,30]
[392270500,1761295843716,-151.0,0.00037776,30]
[392270503,1761295843728,-151.0,0.00037776,30]
[392270505,1761295843739,-151.0,0.00037776,30]
[392270507,1761295843751,-151.0,0.00037776,30]
[392270509,1761295843763,-151.0,0.00037776,30]
[392270512,1761295843775,-151.0,0.00037776,30]
[392270514,1761295843786,-278.208894,0.00037776,30]
[392270516,1761295843799,-158.403957,0.00037776,30]
[392270518,1761295843811,-278.208894,0.00037776,30]
[392270521,1761295843824,-151.0,0.00037776,30]
[392270523,1761295843835,-151.0,0.00037776,30]
[392270525,1761295843848,-151.0,0.00037776,30]
[392270527,1761295843859,-151.0,0.00037776,30]
[392270530,1761295843872,-151.0,0.00037776,30]
[392270532,1761295843883,-151.0,0.00037776,30]
[392270534,1761295843895,-153.097572,0.00037776,30]
[392270537,1761295843907,-151.0,0.00037776,30]
[392270539,1761295843919,-646.845684,0.00037776,30]
[392270541,1761295843931,-164.870138,0.00037776,30]
[392270543,1761295843942,-151.0,0.00037776,30]
[392270546,1761295843954,-151.0,0.00037776,10]
[392270548,1761295843966,-646.845684,0.00037776,30]
[392270550,1761295843979,-164.870138,0.00037776,30]
[392270553,1761295843990,-151.0,0.00037776,30]
[392270555,1761295844002,-151.0,0.00037776,30]
[392270557,1761295844014,-164.870138,0.00037776,30]
[392270559,1761295844026,-151.0,0.00037776,30]
[392270562,1761295844038,-646.845684,0.00037776,30]
[392270564,1761295844049,-151.0,0.00037776,30]
[392270566,1761295844060,-252.872916,0.00037776,30]
[392270568,1761295844072,-151.0,0.00037776,30]
[392270570,1761295844083,-646.845684,0.00037776,30]
[392270573,1761295844095,-164.870138,0.00037776,30]
[392270575,1761295844107,-151.0,0.00037776,30]
[392270577,1761295844118,-151.0,0.00037776,30]
[392270579,1761295844130,-151.0,0.00037776,30]
[392270582,1761295844142,-151.0,0.00037776,30]
[392270584,1761295844153,-151.0,0.00037776,30]
[392270586,1761295844165,-151.0,0.00037776,30]
[392270588,1761295844177,-151.0,0.00037776,30]
[392270590,1761295844188,-151.0,0.00037776,30]
[392270593,1761295844200,-151.0,0.00037776,30]
[392270595,1761295844212,-151.0,0.00037776,30]
[392270597,1761295844225,-151.0,0.00037776,30]
[392270600,1761295844236,-282.351734,0.00037776,30]
[392270602,1761295844248,-151.0,0.00037776,30]
[392270604,1761295844262,-151.0,0.00037776,30]
[392270606,1761295844276,-297.754834,0.00037776,30]
[392270608,1761295844287,-151.0,0.00037776,30]
[392270611,1761295844299,-276.344647,0.00037776,30]
[392270613,1761295844310,-151.0,0.00037776,30]
[392270615,1761295844321,-151.0,0.00037776,30]
[392270617,1761295844332,-151.0,0.00037776,30]
[392270620,1761295844343,-151.0,0.00037776,30]
[392270622,1761295844354,-151.0,0.00037776,30]
[392270624,1761295844365,-151.0,0.00037776,30]
[392270626,1761295844376,-151.0,0.00037776,30]
[392270629,1761295844391,-151.0,0.00037776,30]
[392270631,1761295844404,-151.0,0.00037776,30]
[392270634,1761295844421,-153.233246,0.00037776,30]
[392270636,1761295844433,-151.0,0.00037776,30]
[392270639,1761295844446,-151.0,0.00037776,30]
[392270641,1761295844459,-151.0,0.00037776,30]
[392270644,1761295844471,-498.579985,0.00037776,30]
[392270646,1761295844484,-151.0,0.00037776,30]
[392270647,1761295844496,-498.579985,0.00037776,30]
[392270648,1761295844507,-151.0,0.00037776,30]
[392270649,1761295844518,-151.0,0.00037776,30]
[392270650,1761295844529,-498.579985,0.00037776,30]
[392270651,1761295844540,-155.184871,0.00037776,30]
[392270652,1761295844552,-181.488434,0.00037776,30]
[392270653,1761295844563,-151.0,0.00037776,30]
[392270654,1761295844578,-498.579985,0.00037776,30]
[392270655,1761295844590,-151.0,0.00037776,30]
[392270656,1761295844603,-181.488434,0.00037776,30]
[392270657,1761295844615,-151.0,0.00037776,30]
[392270658,1761295844626,-151.0,0.00037776,30]
[392270659,1761295844638,-181.488434,0.00037776,30]
[392270660,1761295844650,-181.488434,0.00037776,30]
[392270662,1761295844663,-151.4934,0.00037776,30]
[392270665,1761295844675,-151.0,0.00037776,30]
[392270667,1761295844687,-151.0,0.00037776,30]
[392270669,1761295844699,-189.801417,0.00037776,30]
[392270672,1761295844711,-151.0,0.00037776,30]
[392270674,1761295844723,-151.0,0.00037776,30]
[392270676,1761295844735,-151.0,0.00037776,30]
[392270679,1761295844748,-151.0,0.00037776,30]
[392270681,1761295844763,-4118.411676,0.00037776,30]
[392270683,1761295844774,-4118.411676,0.00037776,30]
[392270686,1761295844786,-154.747179,0.00037776,30]
[392270688,1761295844797,-151.0,0.00037776,30]
[392270690,1761295844808,-241.286011,0.00037776,30]
[392270692,1761295844819,-151.0,0.00037776,30]
[392270694,1761295844829,-151.0,0.00037776,30]
[392270696,1761295844841,-4118.411676,0.00037776,30]
[392270699,1761295844852,-266.204121,0.00037776,30]
[392270701,1761295844864,-151.0,0.00037776,30]
[392270703,1761295844876,-151.0,0.00037776,30]
[392270705,1761295844885,-185.451122,0.00037776,30]
[392270707,1761295844894,-4118.411676,0.00037776,30]
[392270709,1761295844903,-185.451122,0.00037776,30]
[392270711,1761295844912,-286.358107,0.00037776,30]
[392270713,1761295844921,-151.0,0.00037776,30]
[392270715,1761295844931,-185.451122,0.00037776,30]
[392270717,1761295844940,-286.358107,0.00037776,30]
[392270719,1761295844953,-286.358107,0.00037776,30]
[392270720,1761295844962,-185.451122,0.00037776,30]
[392270722,1761295844971,-153.36771,0.00037776,30]
[392270723,1761295844981,-286.358107,0.00037776,30]
[392270724,1761295844990,-151.0,0.00037776,30]
[392270725,1761295845000,-151.0,0.00037776,30]
[392270726,1761295845010,-212.575144,0.00037776,30]
[392270727,1761295845019,-151.0,0.00037776,30]
[392270728,1761295845029,-151.0,0.00037776,30]
[392270729,1761295845039,-151.0,0.00037776,30]
[392270730,1761295845048,-151.0,0.00037776,30]
[392270731,1761295845057,-151.0,0.00037776,30]
[392270732,1761295845067,-151.0,0.00037776,30]
[392270733,1761295845075,-151.0,0.00037776,30]
[392270734,1761295845085,-151.0,0.00037776,30]
[392270737,1761295845596,-151.0,0.00037776,30]
[392270738,1761295845619,-500.0,0.00037786,5]
[392270739,1761295845640,-500.0,0.00037786,5]
[392270740,1761295845649,-1086.17,0.000378,14]
[392270741,1761295845658,-306.84,0.00037802,2]
[392270742,1761295845668,-1000.0,0.00037862,2]
[392270744,1761295845678,-18446.7602469,0.00037863,3]
[392270748,1761295845687,-151.0,0.00037863,30]
[392270750,1761295845696,-151.0,0.00037863,30]
[392270752,1761295845706,-151.0,0.00037863,30]
[392270754,1761295845715,-151.0,0.00037863,30]
[392270756,1761295845724,-151.0,0.00037863,30]
[392270758,1761295845733,-151.0,0.00037863,30]
[392270760,1761295845743,-151.0,0.00037863,30]
[392270762,1761295845752,-210.653974,0.00037863,30]
[392270764,1761295845761,-210.653974,0.00037863,30]
[392270766,1761295845770,-210.653974,0.00037863,30]
[392270768,1761295845779,-210.653974,0.00037863,30]
[392270770,1761295845788,-159.700649,0.00037863,30]
[392270772,1761295845797,-500.0,0.00037873,5]
[392270774,1761295845807,-503.07324151,0.00037873,5]
[392270776,1761295845815,-500.0,0.00037873,5]
[392270778,1761295845825,-151.0,0.00037873,30]
[392270780,1761295845834,-151.0,0.00037873,30]
[392270782,1761295845843,-151.0,0.00037873,30]
[392270784,1761295845853,-151.0,0.00037873,30]
[392270786,1761295845862,-151.0,0.00037873,30]
[392270788,1761295845872,-151.0,0.00037873,30]
[392270790,1761295845881,-151.0,0.00037873,30]
[392270791,1761295845891,-151.0,0.00037873,30]
[392270793,1761295845901,-151.0,0.00037873,30]
[392270796,1761295845914,-202.915397,0.00037873,30]
[392270798,1761295845924,-161.01244,0.00037873,30]
[392270800,1761295845933,-151.0,0.00037873,30]
[392270802,1761295845943,-151.0,0.00037873,30]
[392270804,1761295845951,-151.0,0.00037873,30]
[392270806,1761295845961,-151.0,0.00037873,30]
[392270808,1761295845970,-190.202171,0.00037873,30]
[392270810,1761295845979,-190.202171,0.00037873,30]
[392270812,1761295845989,-190.202171,0.00037873,30]
[392270814,1761295845998,-190.202171,0.00037873,30]
[392270816,1761295846007,-151.0,0.00037873,30]
[392270818,1761295846016,-151.0,0.00037873,30]
[392270820,1761295846026,-151.0,0.00037873,30]
[392270822,1761295846036,-151.0,0.00037873,30]
[392270824,1761295846045,-151.0,0.00037873,30]
[392270826,1761295846055,-151.0,0.00037873,30]
[392270828,1761295846064,-151.0,0.00037873,30]
[392270830,1761295846073,-151.0,0.00037873,30]
[392270832,1761295846082,-151.0,0.00037873,15]
[392270834,1761295846092,-151.0,0.00037873,30]
[392270836,1761295846101,-208.390921,0.00037873,30]
[392270837,1761295846110,-151.0,0.00037873,30]
[392270838,1761295846119,-151.0,0.00037873,30]
[392270839,1761295846129,-151.0,0.00037873,30]
[392270840,1761295846138,-173.888232,0.00037873,30]
[392270841,1761295846148,-515.315031,0.00037873,30]
[392270843,1761295846160,-173.888232,0.00037873,30]
[392270844,1761295846171,-515.315031,0.00037873,30]
[392270845,1761295846181,-173.888232,0.00037873,30]
[392270846,1761295846193,-322.446415,0.00037873,30]
[392270847,1761295846204,-151.0,0.00037873,30]
[392270848,1761295846213,-515.315031,0.00037873,30]
[392270849,1761295846223,-173.888232,0.00037873,30]
[392270850,1761295846234,-322.446415,0.00037873,30]
[392270851,1761295846246,-515.315031,0.00037873,30]
[392270852,1761295846257,-322.446415,0.00037873,30]
[392270853,1761295846266,-322.446415,0.00037873,30]
[392270854,1761295846276,-360.3,0.00037886,14]
[392270855,1761295846285,-717.56,0.000379,30]
[392270856,1761295846299,-150.07,0.00037939,2]
[392270857,1761295846310,-200.0,0.00037979,2]
[392270858,1761295846322,-200.0,0.00037979,2]
[392270859,1761295846332,-617.40005154,0.00037979,2]
[392270860,1761295846342,-150.0,0.00038,2]
[392270861,1761295846353,-882.35588877,0.00038027,2]
[392270863,1761295846362,-726.67837332,0.000381,33]
[392270866,1761295846372,-1000.0,0.00038136,2]
[392270867,1761295846382,-309.14897191,0.00038136,7]
[392270868,1761295846392,-151.0,0.00038137,30]
[392270869,1761295846403,-151.0,0.00038137,30]
[392270870,1761295846418,-151.0,0.00038137,30]
[392270871,1761295846430,-162.060662,0.00038137,30]
[392270872,1761295846441,-151.0,0.00038137,30]
[392270873,1761295846451,-151.0,0.00038137,30]
[392270874,1761295846461,-155.845477,0.00038137,30]
[392270875,1761295846472,-210.653974,0.00038137,30]
[392270876,1761295846482,-210.653974,0.00038137,30]
[392270877,1761295846492,-210.653974,0.00038137,30]
[392270878,1761295846502,-210.653968,0.00038137,30]
[392270879,1761295846512,-1574.0,0.0003819,5]
[392270880,1761295846522,-475.59,0.00038192,2]
[392270881,1761295846532,-950.92,0.00038192,2]
[392270882,1761295846543,-18446.7602469,0.00038223,3]
[392270883,1761295846553,-18446.7602469,0.00038243,3]
[392270884,1761295846563,-151.0,0.00038243,30]
[392270885,1761295846573,-151.0,0.00038243,30]
[392270886,1761295846583,-151.0,0.00038243,30]
[392270887,1761295846592,-151.0,0.00038243,30]
[392270888,1761295846603,-151.0,0.00038243,30]
[392270889,1761295846613,-151.0,0.00038243,30]
[392270890,1761295846622,-275.979849,0.00038243,30]
[392270891,1761295846633,-151.0,0.00038243,30]
[392270892,1761295846643,-151.0,0.00038243,30]
[392270893,1761295846652,-151.0,0.00038243,30]
[392270894,1761295846662,-151.0,0.00038243,15]
[392270895,1761295846676,-157.411087,0.00038243,30]
[392270896,1761295846686,-151.0,0.00038243,30]
[392270897,1761295846697,-157.818787,0.00038243,30]
[392270898,1761295846709,-173.888232,0.00038243,30]
[392270899,1761295846722,-164.792645,0.00038243,30]
[392270900,1761295846734,-515.315031,0.00038243,30]
[392270901,1761295846745,-173.888232,0.00038243,30]
[392270902,1761295846756,-515.315031,0.00038243,30]
[392270903,1761295846768,-173.888232,0.00038243,30]
[392270904,1761295846778,-515.315031,0.00038243,30]
[392270905,1761295846788,-173.88824,0.00038243,30]
[392270906,1761295846798,-515.315022,0.00038243,30]
[392270907,1761295846809,-162.291008,0.00038243,30]
[392270908,1761295846821,-151.0,0.00038243,30]
[392270909,1761295846831,-151.0,0.00038243,30]
[392270910,1761295846842,-151.0,0.00038243,30]
[392270911,1761295846852,-151.0,0.00038243,30]
[392270912,1761295846863,-151.0,0.00038243,30]
[392270913,1761295846875,-151.0,0.00038243,30]
[392270914,1761295846888,-151.0,0.00038243,30]
[392270915,1761295846899,-156.41887,0.00038243,30]
[392270916,1761295846909,-151.0,0.00038243,30]
[392270917,1761295846920,-151.0,0.00038243,30]
[392270918,1761295846930,-151.0,0.00038243,30]
[392270919,1761295846941,-151.0,0.00038243,30]